fUSD/lending_fUSD_20240501
["ID","MTS","AMOUNT","RATE_DAILY","PERIOD"]
[325149327,1714540254118,-500.0,0.00011232,2]
[325149328,1714540254126,-500.0,0.00011232,2]
[325149329,1714540254137,-500.0,0.00011232,2]
[325149330,1714540254146,-500.0,0.00011232,2]
[325149331,1714540254156,-500.0,0.00011232,2]
[325149332,1714540254165,-519.19887187,0.00011232,2]
[325149333,1714540254174,-579.02049636,0.00011232,2]
[325149334,1714540254183,-500.0,0.00011232,2]
[325149335,1714540254192,-500.0,0.00011232,2]
[325149336,1714540254201,-500.0,0.00011232,2]
[325149337,1714540254211,-500.0,0.00011232,2]
[325149338,1714540254219,-500.0,0.00011232,2]
[325149339,1714540254228,-500.0,0.00011232,2]
[325149340,1714540254237,-151.56,0.00011232,2]
[325149341,1714540254246,-525.89656311,0.00011232,2]
[325149342,1714540254255,-500.0,0.00011232,2]
[325149343,1714540254265,-500.0,0.00011232,2]
[325149344,1714540254273,-500.0,0.00011232,2]
[325149345,1714540254283,-500.0,0.00011232,2]
[325149346,1714540254292,-367.9110909,0.00011232,2]
[325149347,1714540254301,-500.0,0.00011232,2]
[325149348,1714540254311,-500.0,0.00011232,2]
[325149349,1714540254320,-500.0,0.00011232,2]
[325149350,1714540254330,-500.0,0.00011232,2]
[325149351,1714540254339,-500.0,0.00011232,2]
[325149352,1714540254348,-500.0,0.00011232,2]
[325149353,1714540254358,-500.0,0.00011232,2]
[325149354,1714540254367,-500.0,0.00011232,2]
[325149355,1714540254376,-500.0,0.00011232,2]
[325149356,1714540254387,-500.0,0.00011232,2]
[325149357,1714540254396,-500.0,0.00011232,2]
[325149358,1714540254405,-500.0,0.00011232,2]
[325149359,1714540254414,-500.0,0.00011232,2]
[325149360,1714540254423,-500.0,0.00011232,2]
[325149361,1714540254433,-500.0,0.00011232,2]
[325149362,1714540254443,-500.0,0.00011232,2]
[325149363,1714540254452,-500.0,0.00011232,2]
[325149364,1714540254461,-1268.39,0.00011232,2]
[325149365,1714540254470,-500.0,0.00011232,2]
[325149366,1714540254479,-500.0,0.00011232,2]
[325149367,1714540254488,-506.74925649,0.00011232,2]
[325149368,1714540254500,-500.0,0.00011232,2]
[325149369,1714540254509,-500.0,0.00011232,2]
[325149370,1714540254518,-504.56895567,0.00011232,2]
[325149371,1714540254528,-238.45655004,0.00011232,2]
[325149372,1714540254538,-500.0,0.00011232,2]
[325149373,1714540254547,-500.0,0.00011232,2]
[325149374,1714540254556,-500.0,0.00011232,2]
[325149375,1714540254565,-500.0,0.00011232,2]
[325149376,1714540254574,-500.0,0.00011232,2]
[325149377,1714540254584,-500.0,0.00011232,2]
[325149378,1714540254593,-522.856446,0.00011232,2]
[325149379,1714540254602,-500.0,0.00011232,2]
[325149380,1714540254611,-500.0,0.00011232,2]
[325149381,1714540254620,-500.0,0.00011232,2]
[325149382,1714540254630,-439.25449021,0.00011232,2]
[325149383,1714540254640,-500.0,0.00011232,2]
[325149384,1714540254650,-500.0,0.00011232,2]
[325149385,1714540254660,-500.0,0.00011232,2]
[325149386,1714540254670,-500.0,0.00011232,2]
[325149387,1714540254679,-515.08739356,0.00011232,2]
[325149388,1714540254688,-500.0,0.00011232,2]
[325149389,1714540254698,-500.0,0.00011232,2]
[325149390,1714540254707,-507.61787801,0.00011232,2]
[325149391,1714540254717,-500.0,0.00011232,2]
[325149392,1714540254727,-506.37292549,0.00011232,2]
[325149393,1714540254736,-500.0,0.00011232,2]
[325149394,1714540254746,-500.0,0.00011232,2]
[325149395,1714540254756,-500.0,0.00011232,2]
[325149396,1714540254765,-504.9899635,0.00011232,2]
[325149397,1714540254775,-500.0,0.00011232,2]
[325149398,1714540254784,-500.0,0.00011232,2]
[325149399,1714540254794,-500.0,0.00011232,2]
[325149400,1714540254804,-500.0,0.00011232,2]
[325149401,1714540254813,-500.0,0.00011232,2]
[325149402,1714540254823,-500.0,0.00011232,2]
[325149403,1714540254833,-500.0,0.00011232,2]
[325149404,1714540254843,-500.0,0.00011232,2]
[325149405,1714540254853,-500.0,0.00011232,2]
[325149406,1714540254864,-500.0,0.00011232,2]
[325149407,1714540254874,-500.0,0.00011232,2]
[325149408,1714540254884,-500.0,0.00011232,2]
[325149409,1714540254895,-500.0,0.00011232,2]
[325149410,1714540254904,-500.0,0.00011232,2]
[325149411,1714540254914,-500.0,0.00011232,2]
[325149412,1714540254924,-500.0,0.00011232,2]
[325149413,1714540254933,-500.0,0.00011232,2]
[325149414,1714540254943,-500.0,0.00011232,2]
[325149415,1714540254952,-500.0,0.00011232,2]
[325149416,1714540254962,-500.0,0.00011232,2]
[325149417,1714540254972,-500.0,0.00011232,2]
[325149418,1714540254982,-500.0,0.00011232,2]
[325149419,1714540254992,-500.0,0.00011232,2]
[325149420,1714540255002,-500.0,0.00011232,2]
[325149421,1714540255012,-500.0,0.00011232,2]
[325149422,1714540255023,-504.84371182,0.00011232,2]
[325149423,1714540255034,-500.0,0.00011232,2]
[325149424,1714540255044,-500.0,0.00011232,2]
[325149425,1714540255054,-500.0,0.00011232,2]
[325149426,1714540255064,-501.94801187,0.00011232,2]
[325149427,1714540255075,-500.0,0.00011232,2]
[325149428,1714540255084,-500.0,0.00011232,2]
[325149429,1714540255094,-500.0,0.00011232,2]
[325149430,1714540255104,-500.0,0.00011232,2]
[325149431,1714540255114,-500.0,0.00011232,2]
[325149432,1714540255124,-516.49739444,0.00011232,2]
[325149433,1714540255135,-500.0,0.00011232,2]
[325149434,1714540255144,-696.07,0.00011232,2]
[325149435,1714540255154,-500.0,0.00011232,2]
[325149436,1714540255164,-500.0,0.00011232,2]
[325149437,1714540255174,-500.0,0.00011232,2]
[325149438,1714540255183,-553.95851005,0.00011232,2]
[325149439,1714540255193,-500.0,0.00011232,2]
[325149440,1714540255203,-500.0,0.00011232,2]
[325149441,1714540255212,-500.0,0.00011232,2]
[325149442,1714540255221,-500.0,0.00011232,2]
[325149443,1714540255231,-500.0,0.00011232,2]
[325149444,1714540255240,-500.0,0.00011232,2]
[325149445,1714540255250,-500.0,0.00011232,2]
[325149446,1714540255260,-1819.92,0.00011232,2]
[325149447,1714540255270,-500.0,0.00011232,2]
[325149448,1714540255279,-500.0,0.00011232,2]
[325149449,1714540255288,-508.8371867,0.00011232,2]
[325149450,1714540255298,-500.0,0.00011232,2]
[325149451,1714540255308,-635.03,0.00011232,2]
[325149452,1714540255317,-500.0,0.00011232,2]
[325149453,1714540255327,-500.0,0.00011232,2]
[325149454,1714540255336,-570.65333111,0.00011232,2]
[325149455,1714540255346,-694.08,0.00011232,2]
[325149456,1714540255355,-500.0,0.00011232,2]
[325149457,1714540255366,-500.0,0.00011232,2]
[325149458,1714540255375,-500.0,0.00011232,2]
[325149459,1714540255386,-500.0,0.00011232,2]
[325149460,1714540255396,-513.23929381,0.00011232,2]
[325149461,1714540255407,-511.39208981,0.00011232,2]
[325149462,1714540255417,-1191.13,0.00011232,2]
[325149463,1714540255427,-500.0,0.00011232,2]
[325149464,1714540255437,-500.0,0.00011232,2]
[325149465,1714540255446,-500.0,0.00011232,2]
[325149466,1714540255455,-500.0,0.00011232,2]
[325149467,1714540255465,-759.03,0.00011232,2]
[325149468,1714540255475,-500.0,0.00011232,2]
[325149469,1714540255485,-500.0,0.00011232,2]
[325149470,1714540255495,-500.0,0.00011232,2]
[325149471,1714540255506,-500.0,0.00011232,2]
[325149472,1714540255517,-500.0,0.00011232,2]
[325149473,1714540255527,-500.0,0.00011232,2]
[325149474,1714540255536,-871.25,0.00011232,2]
[325149475,1714540255545,-500.0,0.00011232,2]
[325149476,1714540255557,-509.00901782,0.00011232,2]
[325149477,1714540255566,-2329.15,0.00011232,2]
[325149478,1714540255575,-500.0,0.00011232,2]
[325149479,1714540255586,-500.0,0.00011232,2]
[325149480,1714540255595,-620.52,0.00011232,2]
[325149481,1714540255605,-385.40842683,0.00011232,2]
[325149482,1714540255614,-1223.19,0.00011232,2]
[325149483,1714540255623,-500.0,0.00011232,2]
[325149484,1714540255633,-500.0,0.00011232,2]
[325149485,1714540255643,-340.34501371,0.00011232,2]
[325149486,1714540255652,-500.0,0.00011232,2]
[325149487,1714540255662,-500.0,0.00011232,2]
[325149488,1714540255671,-841.18,0.00011232,2]
[325149489,1714540255680,-715.46,0.00011232,2]
[325149490,1714540255690,-515.4046608,0.00011232,2]
[325149491,1714540255700,-500.0,0.00011232,2]
[325149492,1714540255709,-692.08,0.00011232,2]
[325149493,1714540255718,-1053.15,0.00011232,2]
[325149494,1714540255728,-500.0,0.00011232,2]
[325149495,1714540255738,-500.0,0.00011232,2]
[325149496,1714540255747,-8586.4,0.00011232,2]
[325149497,1714540255757,-500.0,0.00011232,2]
[325149498,1714540255766,-500.0,0.00011232,2]
[325149499,1714540255776,-500.0,0.00011232,2]
[325149500,1714540255786,-500.0,0.00011232,2]
[325149501,1714540255795,-500.0,0.00011232,2]
[325149502,1714540255805,-500.0,0.00011232,2]
[325149503,1714540255814,-9087.05,0.00011232,2]
[325149504,1714540255824,-500.0,0.00011232,2]
[325149505,1714540255833,-646.59,0.00011232,2]
[325149506,1714540255843,-500.0,0.00011232,2]
[325149507,1714540255852,-831.23,0.00011232,2]
[325149508,1714540255861,-500.0,0.00011232,2]
[325149509,1714540255871,-500.0,0.00011232,2]
[325149510,1714540255880,-500.0,0.00011232,2]
[325149511,1714540255890,-500.0,0.00011232,2]
[325149512,1714540255900,-500.0,0.00011232,2]
[325149513,1714540255909,-500.0,0.00011232,2]
[325149514,1714540255919,-500.0,0.00011232,2]
[325149515,1714540255928,-500.0,0.00011232,2]
[325149516,1714540255938,-500.0,0.00011232,2]
[325149517,1714540255947,-500.0,0.00011232,2]
[325149518,1714540255956,-500.0,0.00011232,2]
[325149519,1714540255966,-500.0,0.00011232,2]
[325149520,1714540255975,-531.08465118,0.00011232,2]
[325149521,1714540255985,-3756.1,0.00011232,2]
[325149522,1714540255994,-500.0,0.00011232,2]
[325149523,1714540256004,-508.97331629,0.00011232,2]
[325149524,1714540256013,-1466.96,0.00011232,2]
[325149525,1714540256023,-1523.38,0.00011232,2]
[325149526,1714540256032,-500.0,0.00011232,2]
[325149527,1714540256041,-500.0,0.00011232,2]
[325149528,1714540256051,-500.0,0.00011232,2]
[325149529,1714540256061,-500.0,0.00011232,2]
[325149530,1714540256071,-641.64,0.00011232,2]
[325149531,1714540256080,-500.0,0.00011232,2]
[325149532,1714540256090,-544.51695709,0.00011232,2]
[325149533,1714540256100,-500.0,0.00011232,2]
[325149534,1714540256109,-3707.34,0.00011232,2]
[325149535,1714540256119,-500.0,0.00011232,2]
[325149536,1714540256129,-500.0,0.00011232,2]
[325149537,1714540256139,-559.65684753,0.00011232,2]
[325149538,1714540256149,-500.0,0.00011232,2]
[325149539,1714540256158,-500.0,0.00011232,2]
[325149540,1714540256168,-196.39368416,0.00011232,2]
[325149541,1714540256178,-500.0,0.00011232,2]
[325149542,1714540256188,-500.0,0.00011232,2]
[325149543,1714540256197,-500.0,0.00011232,2]
[325149544,1714540256207,-818.26,0.00011232,2]
[325149545,1714540256217,-500.0,0.00011232,2]
[325149546,1714540256227,-500.0,0.00011232,2]
[325149547,1714540256236,-500.0,0.00011232,2]
[325149548,1714540256246,-519.47,0.00011232,2]
[325149549,1714540256255,-500.0,0.00011232,2]
[325149550,1714540256265,-738.57,0.00011232,2]
[325149551,1714540256275,-500.0,0.00011232,2]
[325149552,1714540256284,-500.0,0.00011232,2]
[325149553,1714540256294,-704.79,0.00011232,2]
[325149554,1714540256303,-513.7558857,0.00011232,2]
[325149555,1714540256313,-517.54147812,0.00011232,2]
[325149556,1714540256322,-500.0,0.00011232,2]
[325149557,1714540256332,-500.0,0.00011232,2]
[325149558,1714540256342,-500.0,0.00011232,2]
[325149559,1714540256352,-500.0,0.00011232,2]
[325149560,1714540256361,-540.83756761,0.00011232,2]
[325149561,1714540256371,-500.0,0.00011232,2]
[325149562,1714540256380,-5772.18,0.00011232,2]
[325149563,1714540256391,-500.0,0.00011232,2]
[325149564,1714540256401,-500.0,0.00011232,2]
[325149565,1714540256410,-1467.28,0.00011232,2]
[325149566,1714540256420,-500.0,0.00011232,2]
[325149567,1714540256430,-1949.66,0.00011232,2]
[325149568,1714540256439,-500.0,0.00011232,2]
[325149569,1714540256449,-500.0,0.00011232,2]
[325149570,1714540256458,-743.15,0.00011232,2]
[325149571,1714540256468,-1305.74,0.00011232,2]
[325149572,1714540256478,-500.0,0.00011232,2]
[325149573,1714540256487,-500.0,0.00011232,2]
[325149574,1714540256498,-522.99,0.00011232,2]
[325149575,1714540256510,-500.0,0.00011232,2]
[325149576,1714540256520,-771.24,0.00011232,2]
[325149577,1714540256529,-500.0,0.00011232,2]
[325149578,1714540256540,-500.0,0.00011232,2]
[325149579,1714540256549,-500.0,0.00011232,2]
[325149580,1714540256559,-2059.7,0.00011232,2]
[325149581,1714540256569,-550.08128028,0.00011232,2]
[325149582,1714540256578,-500.0,0.00011232,2]
[325149583,1714540256588,-513.89664927,0.00011232,2]
[325149584,1714540256598,-500.0,0.00011232,2]
[325149585,1714540256607,-500.0,0.00011232,2]
[325149586,1714540256617,-500.0,0.00011232,2]
[325149587,1714540256627,-500.0,0.00011232,2]
[325149588,1714540256637,-1302.49,0.00011232,2]
[325149589,1714540256647,-500.0,0.00011232,2]
[325149590,1714540256656,-500.0,0.00011232,2]
[325149591,1714540256666,-500.0,0.00011232,2]
[325149592,1714540256675,-577.34666716,0.00011232,2]
[325149593,1714540256685,-862.65,0.00011232,2]
[325149594,1714540256695,-500.0,0.00011232,2]
[325149595,1714540256704,-500.0,0.00011232,2]
[325149596,1714540256714,-1237.75,0.00011232,2]
[325149597,1714540256724,-794.61,0.00011232,2]
[325149598,1714540256734,-377.23693934,0.00011232,2]
[325149599,1714540256744,-500.0,0.00011232,2]
[325149600,1714540256914,-500.0,0.00011232,2]
[325149601,1714540256924,-500.0,0.00011232,2]
[325149602,1714540256934,-504.1093228,0.00011232,2]
[325149603,1714540256943,-500.0,0.00011232,2]
[325149604,1714540256952,-273.78447463,0.00011232,2]
[325149605,1714540257311,-226.21552537,0.00011232,2]
[325149606,1714540257321,-500.0,0.00011232,2]
[325149607,1714540257330,-332.62310772,0.00011232,2]
[325149608,1714540257342,-167.37689228,0.00011232,2]
[325149609,1714540257351,-1333.93,0.00011232,2]
[325149610,1714540257360,-47.09357084,0.00011232,2]
[325149611,1714540257570,-500.0,0.00010958,2]
[325149612,1714540257580,-156.05,0.00010958,2]
[325149613,1714540257595,-343.95,0.00010958,2]
[325149614,1714540257607,-36.65334657,0.00010958,2]
[325149615,1714540257618,-463.34665343,0.00010958,2]
[325149616,1714540257627,-500.0,0.00010958,2]
[325149617,1714540257637,-500.0,0.00010958,2]
[325149618,1714540257646,-1171.75642916,0.00011232,2]
[325149619,1714540257655,-500.0,0.00011232,2]
[325149620,1714540257664,-500.0,0.00011232,2]
[325149621,1714540257674,-500.0,0.00011232,2]
[325149622,1714540257684,-514.97195742,0.00011232,2]
[325149623,1714540257694,-205.72132999,0.00011232,2]
[325149624,1714540257707,-294.27867001,0.00011232,2]
[325149625,1714540257717,-500.0,0.00011232,2]
[325149626,1714540257726,-500.0,0.00011232,2]
[325149627,1714540257736,-842.1606398,0.00011232,2]
[325149628,1714540257748,-236.4693602,0.00011232,2]
[325149629,1714540257758,-500.0,0.00011232,2]
[325149630,1714540257767,-225.04939674,0.00011232,2]
[325149631,1714540257780,-693.17060326,0.00011232,2]
[325149632,1714540257790,-500.0,0.00011232,2]
[325149633,1714540257801,-813.98,0.00011232,2]
[325149634,1714540257810,-1198.74,0.00011232,2]
[325149635,1714540257821,-500.0,0.00011232,2]
[325149636,1714540257833,-500.0,0.00011232,2]
[325149637,1714540257843,-500.0,0.00011232,2]
[325149638,1714540257854,-500.0,0.00011232,2]
[325149639,1714540257864,-3879.25,0.00011232,2]
[325149640,1714540257873,-500.0,0.00011232,2]
[325149641,1714540257883,-500.0,0.00011232,2]
[325149642,1714540257893,-1136.44,0.00011232,2]
[325149643,1714540257902,-500.0,0.00011232,2]
[325149644,1714540257912,-500.0,0.00011232,2]
[325149645,1714540257923,-500.0,0.00011232,2]
[325149646,1714540257933,-500.0,0.00011232,2]
[325149647,1714540257944,-500.0,0.00011232,2]
[325149648,1714540257954,-309.37812662,0.00011232,2]
[325149649,1714540257963,-571.83,0.00011232,2]
[325149650,1714540257972,-500.0,0.00011232,2]
[325149651,1714540257981,-500.0,0.00011232,2]
[325149652,1714540257991,-500.0,0.00011232,2]
[325149653,1714540258000,-500.0,0.00011232,2]
[325149654,1714540258010,-2871.71,0.00011232,2]
[325149655,1714540258019,-500.0,0.00011232,2]
[325149656,1714540258028,-500.0,0.00011232,2]
[325149657,1714540258037,-500.0,0.00011232,2]
[325149658,1714540258047,-500.0,0.00011232,2]
[325149659,1714540258056,-500.0,0.00011232,2]
[325149660,1714540258065,-945.33,0.00011232,2]
[325149661,1714540258074,-500.0,0.00011232,2]
[325149662,1714540258083,-500.0,0.00011232,2]
[325149663,1714540258097,-500.0,0.00011232,2]
[325149664,1714540258106,-500.0,0.00011232,2]
[325149665,1714540258116,-500.0,0.00011232,2]
[325149666,1714540258125,-500.0,0.00011232,2]
[325149667,1714540258134,-500.0,0.00011232,2]
[325149668,1714540258144,-2164.88,0.00011232,2]
[325149669,1714540258154,-3844.08,0.00011232,2]
[325149670,1714540258163,-1390.32,0.00011232,2]
[325149671,1714540258172,-500.0,0.00011232,2]
[325149672,1714540258182,-500.0,0.00011232,2]
[325149673,1714540258191,-3440.01,0.00011232,2]
[325149674,1714540258200,-500.0,0.00011232,2]
[325149675,1714540258209,-6943.73,0.00011232,2]
[325149676,1714540258219,-745.94,0.00011232,2]
[325149677,1714540258228,-1079.64,0.00011232,2]
[325149678,1714540258238,-586.28041216,0.00011232,2]
[325149679,1714540258247,-1566.02,0.00011232,2]
[325149680,1714540258256,-500.0,0.00011232,2]
[325149681,1714540258265,-3787.62,0.00011232,2]
[325149682,1714540258275,-500.0,0.00011232,2]
[325149683,1714540258283,-500.0,0.00011232,2]
[325149684,1714540258292,-500.0,0.00011232,2]
[325149685,1714540258301,-500.0,0.00011232,2]
[325149686,1714540258310,-500.0,0.00011232,2]
[325149687,1714540258320,-500.0,0.00011232,2]
[325149688,1714540258330,-500.0,0.00011232,2]
[325149689,1714540258339,-1872.35,0.00011232,2]
[325149690,1714540258348,-500.0,0.00011232,2]
[325149691,1714540258357,-500.0,0.00011232,2]
[325149692,1714540258367,-500.0,0.00011232,2]
[325149693,1714540258376,-500.0,0.00011232,2]
[325149694,1714540258385,-674.49,0.00011232,2]
[325149695,1714540258395,-1501.19,0.00011232,2]
[325149696,1714540258404,-500.0,0.00011232,2]
[325149697,1714540258413,-500.0,0.00011232,2]
[325149698,1714540258422,-500.0,0.00011232,2]
[325149699,1714540258431,-500.0,0.00011232,2]
[325149700,1714540258440,-500.0,0.00011232,2]
[325149701,1714540258449,-12280.95,0.00011232,2]
[325149702,1714540258458,-1053.93,0.00011232,2]
[325149703,1714540258467,-500.0,0.00011232,2]
[325149704,1714540258475,-500.0,0.00011232,2]
[325149705,1714540258484,-500.0,0.00011232,2]
[325149706,1714540258494,-500.0,0.00011232,2]
[325149707,1714540258507,-500.0,0.00011232,2]
[325149708,1714540258517,-500.0,0.00011232,2]
[325149709,1714540258525,-12944.54,0.00011232,2]
[325149710,1714540258535,-541.70855178,0.00011232,2]
[325149711,1714540258545,-1206.86,0.00011232,2]
[325149712,1714540258554,-1235.53,0.00011232,2]
[325149713,1714540258563,-522.68399533,0.00011232,2]
[325149714,1714540258572,-507.47981589,0.00011232,2]
[325149715,1714540258581,-790.64,0.00011232,2]
[325149716,1714540258592,-500.0,0.00011232,2]
[325149717,1714540258601,-500.0,0.00011232,2]
[325149718,1714540258610,-168.42,0.00011232,2]
[325149719,1714540258619,-1861.17,0.00011232,2]
[325149720,1714540258628,-500.0,0.00011232,2]
[325149721,1714540258638,-500.0,0.00011232,2]
[325149722,1714540258647,-500.0,0.00011232,2]
[325149723,1714540258657,-171.68,0.00011232,2]
[325149724,1714540258666,-500.0,0.00011232,2]
[325149725,1714540258675,-500.0,0.00011232,2]
[325149726,1714540258684,-500.0,0.00011232,2]
[325149727,1714540258693,-1266.65,0.00011232,2]
[325149728,1714540258702,-500.0,0.00011232,2]
[325149729,1714540258711,-5166.18,0.00011232,2]
[325149730,1714540258720,-500.0,0.00011232,2]
[325149731,1714540258729,-558.11,0.00011232,2]
[325149732,1714540258738,-500.0,0.00011232,2]
[325149733,1714540258747,-500.0,0.00011232,2]
[325149734,1714540258757,-2750.51,0.00011232,2]
[325149735,1714540258766,-500.0,0.00011232,2]
[325149736,1714540258775,-500.0,0.00011232,2]
[325149737,1714540258785,-500.0,0.00011232,2]
[325149738,1714540258796,-501.52632322,0.00011232,2]
[325149739,1714540258806,-644.75,0.00011232,2]
[325149740,1714540258816,-500.0,0.00011232,2]
[325149741,1714540258825,-500.0,0.00011232,2]
[325149742,1714540258835,-500.0,0.00011232,2]
[325149743,1714540258844,-500.0,0.00011232,2]
[325149744,1714540258853,-500.0,0.00011232,2]
[325149745,1714540258863,-153.82169608,0.00011295,2]
[325149746,1714540258872,-173.41117499,0.00011406,2]
[325149747,1714540258881,-500.0,0.00011505,2]
[325149748,1714540258890,-500.0,0.00011506,2]
[325149749,1714540258899,-500.0,0.00011506,2]
[325149750,1714540258909,-510.23091363,0.00011506,2]
[325149751,1714540258919,-500.0,0.00011506,2]
[325149752,1714540258928,-500.0,0.00011506,2]
[325149753,1714540258938,-500.0,0.00011506,2]
[325149754,1714540258949,-500.0,0.00011506,2]
[325149755,1714540258960,-483.8030908,0.00011506,2]
[325149756,1714540258969,-500.0,0.00011506,2]
[325149757,1714540258978,-500.0,0.00011506,2]
[325149758,1714540258988,-500.0,0.00011506,2]
[325149759,1714540258998,-500.0,0.00011506,2]
[325149760,1714540259008,-172.00340385,0.00011506,2]
[325149761,1714540259019,-500.0,0.00011506,2]
[325149762,1714540259029,-500.0,0.00011506,2]
[325149763,1714540259040,-500.0,0.00011506,2]
[325149764,1714540259050,-500.0,0.00011506,2]
[325149765,1714540259059,-272.59887728,0.00011506,2]
[325149766,1714540259068,-500.0,0.00011506,2]
[325149767,1714540259077,-500.0,0.00011506,2]
[325149768,1714540259086,-500.0,0.00011506,2]
[325149769,1714540259095,-500.0,0.00011506,2]
[325149770,1714540259105,-500.0,0.00011506,2]
[325149771,1714540259114,-491.3971664,0.00011506,2]
[325149772,1714540259123,-500.0,0.00011506,2]
[325149773,1714540259132,-598.52259914,0.00011506,2]
[325149774,1714540259143,-500.0,0.00011506,2]
[325149775,1714540259155,-286.31925644,0.00011506,2]
[325149776,1714540259164,-500.0,0.00011506,2]
[325149777,1714540259174,-511.59963815,0.00011506,2]
[325149778,1714540259183,-500.0,0.00011506,2]
[325149779,1714540259192,-500.0,0.00011506,2]
[325149780,1714540259202,-500.0,0.00011506,2]
[325149781,1714540259212,-500.0,0.00011506,2]
[325149782,1714540259222,-225.9627734,0.00011506,2]
[325149783,1714540259232,-209.05853157,0.00011506,2]
[325149784,1714540259241,-500.0,0.00011506,2]
[325149785,1714540259250,-500.0,0.00011506,2]
[325149786,1714540259259,-500.0,0.00011506,2]
[325149787,1714540259269,-500.0,0.00011506,2]
[325149788,1714540259278,-500.0,0.00011506,2]
[325149789,1714540259288,-500.0,0.00011506,2]
[325149790,1714540259298,-434.6499938,0.00011506,2]
[325149791,1714540259307,-500.0,0.00011506,2]
[325149792,1714540259316,-500.0,0.00011506,2]
[325149793,1714540259326,-500.0,0.00011506,2]
[325149794,1714540259335,-500.0,0.00011506,2]
[325149795,1714540259344,-593.29072405,0.00011506,2]
[325149796,1714540259354,-500.0,0.00011506,2]
[325149797,1714540259363,-500.0,0.00011506,2]
[325149798,1714540259372,-500.0,0.00011506,2]
[325149799,1714540259381,-500.0,0.00011506,2]
[325149800,1714540259391,-1385.92,0.00011506,2]
[325149801,1714540259402,-500.0,0.00011506,2]
[325149802,1714540259411,-500.0,0.00011506,2]
[325149803,1714540259420,-500.0,0.00011506,2]
[325149804,1714540259429,-506.93573129,0.00011506,2]
[325149805,1714540259438,-500.0,0.00011506,2]
[325149806,1714540259447,-500.0,0.00011506,2]
[325149807,1714540259456,-500.0,0.00011506,2]
[325149808,1714540259465,-537.82714888,0.00011506,2]
[325149809,1714540259474,-500.0,0.00011506,2]
[325149810,1714540259483,-500.0,0.00011506,2]
[325149811,1714540259492,-500.0,0.00011506,2]
[325149812,1714540259503,-500.0,0.00011506,2]
[325149813,1714540259515,-500.0,0.00011506,2]
[325149814,1714540259523,-500.0,0.00011506,2]
[325149815,1714540259532,-500.0,0.00011506,2]
[325149816,1714540259543,-364.70421916,0.00011506,2]
[325149817,1714540259552,-500.0,0.00011506,2]
[325149818,1714540259561,-502.59021801,0.00011506,2]
[325149819,1714540259570,-500.0,0.00011506,2]
[325149820,1714540259579,-500.0,0.00011506,2]
[325149821,1714540259589,-500.0,0.00011506,2]
[325149822,1714540259598,-500.0,0.00011506,2]
[325149823,1714540259607,-591.68,0.00011506,2]
[325149824,1714540259616,-500.0,0.00011506,2]
[325149825,1714540259625,-500.0,0.00011506,2]
[325149826,1714540259633,-500.0,0.00011506,2]